bitfinex-derivatives/quotes_BTCF0:USTF0_20251011
["timestamp","ask_amount","ask_price","bid_price","bid_amount"]
[1760149265730,0.089062,112170.0,112160.0,0.01391]
[1760149266031,0.77432431,112180.0,112160.0,0.01391]
[1760149266032,0.0890561,112180.0,112170.0,0.01391]
[1760149266226,0.15319366,112190.0,112180.0,0.00263266]
[1760149266421,0.06414366,112190.0,112180.0,0.00263266]
[1760149266627,0.51398066,112200.0,112190.0,0.01391]
[1760149266828,0.12414366,112200.0,112190.0,0.37471]
[1760149267029,0.0890341,112210.0,112200.0,0.01391]
[1760149267030,0.06414366,112210.0,112200.0,0.01391]
[1760149267330,0.0890212,112220.0,112210.0,0.01391]
[1760149268327,0.4498212,112220.0,112210.0,0.01391]
[1760149268634,0.4498212,112220.0,112200.0,0.01391]
[1760149268635,0.0890291,112210.0,112200.0,0.01391]
[1760149268831,0.089037,112200.0,112190.0,0.01391]
[1760149269033,0.449837,112200.0,112190.0,0.01391]
[1760149269236,0.089045,112190.0,112180.0,0.00263266]
[1760149269636,0.0890398,112200.0,112190.0,0.0143]
[1760149269835,0.0890398,112200.0,112190.0,0.3751]
[1760149270034,0.089032,112210.0,112200.0,0.0143]
[1760149270632,0.090037,112200.0,112190.0,0.0143]
[1760149271536,0.089037,112200.0,112190.0,0.0143]
[1760149272630,0.449837,112200.0,112190.0,0.0143]
[1760149273031,0.089045,112190.0,112180.0,0.00263266]
[1760149273227,0.449845,112190.0,112180.0,0.00263266]
[1760149274038,0.089045,112190.0,112180.0,0.78599266]
[1760149274236,0.090045,112190.0,112180.0,0.78599266]
[1760149275036,0.090045,112190.0,112180.0,0.00263266]
[1760149275234,0.090045,112190.0,112180.0,0.36343266]
[1760149275538,0.090045,112190.0,112180.0,0.00263266]
[1760149275839,0.450845,112190.0,112180.0,0.00263266]
[1760149276038,0.0890528,112180.0,112170.0,0.0143]
[1760149276338,0.0890528,112180.0,112170.0,0.39766]
[1760149276533,0.4498528,112180.0,112170.0,0.0143]
[1760149277133,0.0890687,112160.0,112150.0,0.0143]
[1760149277334,0.4498687,112160.0,112150.0,0.0143]
[1760149277528,0.3608,112190.0,112160.0,0.03686]
[1760149277735,0.0890489,112190.0,112180.0,0.03686]
[1760149278038,0.4498413,112200.0,112190.0,0.0143]
[1760149278235,0.4498342,112210.0,112200.0,0.0143]
[1760149278637,0.4498342,112210.0,112200.0,0.03686]
[1760149278938,0.0890265,112220.0,112210.0,0.0143]
[1760149279140,0.089018,112230.0,112220.0,0.02527521]
[1760149279528,0.449818,112230.0,112220.0,0.00271521]
[1760149280239,0.0890211,112220.0,112210.0,0.0143]
[1760149280436,0.4498211,112220.0,112200.0,0.0143]
[1760149280634,0.0890449,112190.0,112180.0,0.0143]
[1760149281240,0.0900326,112210.0,112200.0,0.0143]
[1760149281537,0.0890326,112210.0,112200.0,0.0143]
[1760149282039,0.0890288,112210.0,112200.0,0.0143]
[1760149282237,0.0890263,112220.0,112210.0,0.0143]
[1760149282438,0.4498152,112230.0,112220.0,0.0143]
[1760149283146,0.0889994,112250.0,112240.0,0.0143]
[1760149283147,0.4498043,112250.0,112240.0,0.0143]
[1760149283538,0.088993,112260.0,112250.0,0.0143]
[1760149283735,0.449793,112260.0,112250.0,0.0143]
[1760149284345,0.088997,112250.0,112240.0,0.0143]
[1760149284536,0.449797,112250.0,112240.0,0.0143]
[1760149285040,0.0890052,112240.0,112230.0,0.3751]
[1760149285238,0.0890052,112240.0,112230.0,0.0143]
[1760149285441,0.0890052,112240.0,112230.0,0.3751]
[1760149285837,0.0910011,112250.0,112240.0,0.0143]
[1760149286142,0.0909973,112250.0,112240.0,0.0143]
[1760149286343,0.4517973,112250.0,112240.0,0.0143]
[1760149286949,0.0890052,112240.0,112230.0,0.0143]
[1760149287151,0.4518052,112240.0,112230.0,0.0143]
[1760149287341,0.0910052,112240.0,112230.0,0.3751]
[1760149287742,0.0890052,112240.0,112230.0,0.3751]
[1760149287952,0.3628,112250.0,112240.0,0.03686]
[1760149288250,0.3628,112250.0,112240.0,0.39766]
[1760149288251,0.002,112250.0,112240.0,0.39766]
[1760149288555,0.4497542,112310.0,112300.0,0.0143]
[1760149288747,0.0889569,112300.0,112290.0,0.0143]
[1760149291150,0.0909569,112300.0,112290.0,0.0143]
[1760149291347,0.002,112300.0,112290.0,0.9051]
[1760149291548,0.48149855,112340.0,112320.0,0.0143]
[1760149291742,0.0889335,112330.0,112310.0,0.3751]
[1760149292148,0.0889335,112330.0,112320.0,0.0143]
[1760149292654,0.4497335,112330.0,112320.0,0.0143]
[1760149292852,0.4497335,112330.0,112310.0,0.3751]
[1760149294153,0.4517335,112330.0,112310.0,0.3751]
[1760149294652,0.002,112330.0,112320.0,0.3751]
[1760149295951,0.002,112330.0,112320.0,0.7751]
[1760149296157,0.0889084,112360.0,112320.0,0.7751]
[1760149296455,0.0889095,112350.0,112340.0,0.3751]
[1760149296845,0.0889095,112350.0,112340.0,0.0143]
[1760149297050,0.0889095,112350.0,112330.0,0.3751]
[1760149298052,0.0889164,112350.0,112330.0,0.3751]
[1760149298253,0.4497164,112350.0,112330.0,0.3608]
[1760149298753,0.002,112360.0,112350.0,0.01426]
[1760149298954,0.002,112360.0,112350.0,0.37506]
[1760149299154,0.3608,112390.0,112360.0,0.01426]
[1760149299352,0.3608,112400.0,112380.0,0.37506]
[1760149299657,0.4496672,112410.0,112380.0,0.37506]
[1760149300052,0.4496672,112410.0,112390.0,0.01426]
[1760149300758,0.0888814,112390.0,112370.0,0.37506]
[1760149300954,0.0888823,112390.0,112370.0,0.37506]
[1760149301155,0.7608,112390.0,112360.0,0.3608]
[1760149301457,0.0889076,112360.0,112340.0,0.3608]
[1760149301758,0.4497068,112360.0,112330.0,0.37506]
[1760149302154,0.3608,112350.0,112330.0,0.3608]
[1760149302353,0.0889226,112340.0,112320.0,0.37506]
[1760149302561,0.4497173,112350.0,112320.0,0.01426]
[1760149302751,0.4497173,112350.0,112320.0,0.37506]
[1760149303062,0.4497275,112340.0,112310.0,0.37506]
[1760149303260,0.4497195,112350.0,112320.0,0.3608]
[1760149303458,0.088924,112340.0,112320.0,0.3608]
[1760149303760,0.0889392,112330.0,112310.0,0.37506]
[1760149303961,0.0889392,112330.0,112310.0,0.3608]
[1760149304761,0.0889392,112330.0,112300.0,0.37506]
[1760149304961,0.0889392,112330.0,112290.0,0.37506]
[1760149304962,0.4497456,112320.0,112290.0,0.37506]
[1760149305165,0.4497456,112320.0,112300.0,0.3608]
[1760149305461,0.3608,112320.0,112300.0,0.3608]
[1760149305662,0.4497341,112330.0,112300.0,0.3608]
[1760149306162,0.4497341,112330.0,112290.0,0.37506]
[1760149306163,0.4497453,112320.0,112290.0,0.37506]
[1760149306564,0.4497453,112320.0,112280.0,0.37506]
[1760149306565,0.4497533,112310.0,112280.0,0.37506]
[1760149306766,0.4497482,112310.0,112290.0,0.3608]
[1760149306971,0.0889622,112300.0,112270.0,0.37506]
[1760149307263,0.3608,112310.0,112280.0,0.37506]
[1760149307660,0.80114324,112320.0,112290.0,0.37506]
[1760149307661,0.4497423,112320.0,112290.0,0.37506]
[1760149307857,0.3608,112320.0,112300.0,0.37506]
[1760149308056,0.3608,112320.0,112290.0,0.37506]
[1760149308262,0.80114304,112320.0,112290.0,0.37506]
[1760149308460,0.80114304,112320.0,112300.0,0.3608]
[1760149308658,0.449734,112330.0,112300.0,0.37506]
[1760149308867,0.449734,112330.0,112310.0,0.3608]
[1760149309166,0.449734,112330.0,112300.0,0.37506]
[1760149309467,0.80112654,112340.0,112310.0,0.37457]
[1760149309661,0.81112654,112340.0,112310.0,0.37457]
[1760149309855,0.4597256,112340.0,112310.0,0.37457]
[1760149310556,0.3608,112340.0,112320.0,0.37457]
[1760149311664,0.4497244,112340.0,112310.0,0.37457]
[1760149312466,0.3608,112340.0,112320.0,0.37457]
[1760149313461,0.3608,112340.0,112320.0,0.44457]
[1760149313664,0.4497236,112340.0,112320.0,0.44457]
[1760149313864,0.4497236,112340.0,112320.0,0.08377]
[1760149314071,0.39251756,112350.0,112320.0,0.44457]
[1760149314367,0.03171756,112350.0,112340.0,0.37457]
[1760149314563,0.03171756,112360.0,112340.0,0.39457]
[1760149314760,0.48141826,112370.0,112340.0,0.39457]
[1760149314968,0.0889093,112360.0,112340.0,0.39457]
[1760149315163,0.0889093,112360.0,112340.0,0.03377]
[1760149315464,0.88143316,112350.0,112340.0,0.02]
[1760149315662,0.0889363,112330.0,112310.0,0.37457]
[1760149315864,0.148,112320.0,112310.0,0.08377]
[1760149316169,0.48149149,112330.0,112310.0,0.08377]
[1760149316364,0.03175519,112330.0,112320.0,0.3608]
[1760149316568,0.03175519,112330.0,112320.0,0.44457]
[1760149316764,0.03175519,112330.0,112320.0,0.08377]
[1760149316965,0.48148689,112330.0,112320.0,0.07]
[1760149317266,0.80843279,112330.0,112310.0,0.01377]
[1760149317467,0.80843279,112330.0,112310.0,0.39457]
[1760149317468,0.03181893,112320.0,112310.0,0.39457]
[1760149317674,0.03181893,112330.0,112320.0,0.01377]
[1760149317859,0.03181893,112330.0,112320.0,0.45457]
[1760149318059,0.04763279,112330.0,112320.0,0.45457]
[1760149319971,0.04763279,112340.0,112320.0,0.45457]
[1760149320167,0.04763279,112340.0,112330.0,0.01377]
[1760149320468,0.04763279,112340.0,112330.0,0.4768]
[1760149320667,0.04763279,112350.0,112340.0,0.01377]
[1760149320971,0.04763279,112350.0,112340.0,0.03377]
[1760149321170,0.3608,112370.0,112340.0,0.39457]
[1760149321473,0.3608,112360.0,112340.0,0.39457]
[1760149322070,0.3608,112360.0,112350.0,0.01377]
[1760149322264,0.40859002,112360.0,112350.0,0.01377]
[1760149322470,0.40859002,112360.0,112340.0,0.01377]
[1760149322669,0.40859002,112360.0,112340.0,0.02377]
[1760149323068,0.40859002,112350.0,112340.0,0.01]
[1760149323371,0.49750792,112350.0,112340.0,0.01]
[1760149323568,1.74112244,112350.0,112320.0,0.01377]
[1760149323766,0.40860147,112340.0,112320.0,0.39457]
[1760149323970,0.04780147,112340.0,112330.0,0.37457]
[1760149324162,0.04780147,112350.0,112340.0,0.01377]
[1760149324574,0.44780147,112350.0,112340.0,0.01377]
[1760149324765,0.44780147,112350.0,112330.0,0.37457]
[1760149324973,0.39920241,112350.0,112330.0,0.01377]
[1760149325181,0.71220094,112350.0,112330.0,0.01377]
[1760149325374,1.20112534,112350.0,112320.0,0.01377]
[1760149325569,0.4497267,112340.0,112320.0,0.02]
[1760149325771,0.3608,112330.0,112320.0,0.02]
[1760149326171,0.0889427,112320.0,112300.0,0.01377]
[1760149326377,0.3608,112310.0,112290.0,0.01377]
[1760149326578,0.71220094,112320.0,112290.0,0.39457]
[1760149326774,0.3608,112330.0,112310.0,0.01377]
[1760149327170,0.40859951,112330.0,112320.0,0.01377]
[1760149327773,0.76000045,112330.0,112310.0,0.01377]
[1760149327969,0.4497448,112320.0,112300.0,0.01377]
[1760149328173,0.3608,112310.0,112300.0,0.01477]
[1760149328976,0.3608,112320.0,112300.0,0.01377]
[1760149329675,0.80115184,112310.0,112290.0,0.01377]
[1760149329975,0.49755041,112310.0,112290.0,0.02]
[1760149330180,0.3608,112300.0,112290.0,0.02]
[1760149330380,0.4497574,112300.0,112290.0,0.02]
[1760149330678,0.4497574,112300.0,112270.0,0.37457]
[1760149330879,0.3608,112290.0,112270.0,0.48457]
[1760149331069,0.3608,112290.0,112280.0,0.01325]
[1760149331372,0.04779951,112300.0,112290.0,0.01325]
[1760149331576,0.40859951,112310.0,112300.0,0.01325]
[1760149331768,0.3608,112310.0,112300.0,0.01325]
[1760149332081,0.40859951,112320.0,112300.0,0.01325]
[1760149332275,0.84895475,112310.0,112280.0,0.01325]
[1760149332477,0.3608,112300.0,112280.0,0.03325]
[1760149332685,0.3608,112300.0,112280.0,0.39405]
[1760149333173,0.3608,112300.0,112290.0,0.01325]
[1760149333368,0.04779951,112310.0,112300.0,0.01325]
[1760149333577,0.49754101,112320.0,112300.0,0.01325]
[1760149333774,0.40859951,112320.0,112300.0,0.01325]
[1760149333974,0.40859951,112320.0,112310.0,0.01325]
[1760149335079,0.3608,112320.0,112310.0,0.01325]
[1760149335677,0.3608,112320.0,112310.0,0.02269166]
[1760149335973,0.7608,112320.0,112310.0,0.02269166]
[1760149336178,0.849742,112320.0,112300.0,0.01325]
[1760149336477,0.3608,112310.0,112300.0,0.01325]
[1760149338579,0.3618,112310.0,112300.0,0.01325]
[1760149338774,0.3618,112310.0,112290.0,0.37405]
[1760149338970,0.3618,112310.0,112300.0,0.01325]
[1760149338971,0.001,112310.0,112300.0,0.01325]
[1760149339167,0.3608,112320.0,112300.0,0.39673728]
[1760149339375,0.3608,112330.0,112310.0,0.01325]
[1760149339679,0.3608,112330.0,112310.0,0.03593728]
[1760149339875,0.4497403,112330.0,112310.0,0.03593728]
[1760149340080,0.3608,112320.0,112310.0,0.02268728]
[1760149340676,0.3608,112320.0,112300.0,0.01325]
[1760149341374,0.3608,112310.0,112300.0,0.01325]
[1760149341578,0.76000045,112330.0,112300.0,0.37405]
[1760149341883,0.76000045,112330.0,112310.0,0.01325]
[1760149342177,0.3608,112320.0,112310.0,0.01325]
[1760149342386,0.3608,112330.0,112320.0,0.01325]
[1760149342575,0.04779951,112330.0,112320.0,0.01325]
[1760149342781,0.40859951,112340.0,112330.0,0.01325]
[1760149342979,0.04779951,112340.0,112330.0,0.1021841]
[1760149343175,0.04779951,112360.0,112340.0,0.03634]
[1760149343380,0.04779951,112360.0,112350.0,0.37405]
[1760149343682,0.40859951,112370.0,112350.0,0.01325]
[1760149343883,0.45859951,112370.0,112350.0,0.01325]
[1760149344182,0.3608,112360.0,112340.0,0.01325]
[1760149344381,0.4497107,112360.0,112340.0,0.01325]
[1760149344588,0.4497182,112350.0,112330.0,0.01325]
[1760149344887,0.3608,112340.0,112330.0,0.01325]
[1760149346781,0.04779951,112350.0,112340.0,0.01325]
[1760149348078,0.04779951,112350.0,112340.0,0.41325]
[1760149348282,0.77273288,112360.0,112350.0,0.01325]
[1760149348283,0.82053239,112360.0,112350.0,0.01325]
[1760149348586,0.66184696,112370.0,112350.0,0.01325]
[1760149348587,0.40859951,112370.0,112360.0,0.01325]
[1760149348787,0.46859951,112370.0,112360.0,0.01325]
[1760149349686,1.2705042,112370.0,112350.0,0.01325]
[1760149349888,0.82053846,112360.0,112350.0,0.01325]
[1760149351184,0.0889185,112350.0,112330.0,0.01325]
[1760149351380,0.0889403,112330.0,112310.0,0.01325]
[1760149351584,0.0889403,112330.0,112300.0,0.37405]
[1760149351585,0.90948152,112320.0,112300.0,0.01325]
[1760149351785,0.03188365,112310.0,112300.0,0.01325]
[1760149351986,0.03188365,112310.0,112290.0,0.01325]
[1760149351987,0.48163375,112310.0,112290.0,0.01325]
[1760149352288,0.39268365,112300.0,112290.0,0.01325]
[1760149352687,0.80461653,112300.0,112280.0,0.01325]
[1760149352885,0.03188365,112290.0,112280.0,0.01325]
[1760149353483,0.03188365,112290.0,112270.0,0.37405]
[1760149353484,0.0889739,112280.0,112260.0,0.01325]
[1760149353681,0.39269678,112270.0,112260.0,0.01325]
[1760149353980,0.03189678,112270.0,112260.0,0.01325]
[1760149354186,0.07974196,112280.0,112270.0,0.01325]
[1760149354380,0.39269678,112280.0,112270.0,0.01325]
[1760149354584,0.40864518,112280.0,112270.0,0.01325]
[1760149355087,0.39268845,112280.0,112270.0,0.01325]
[1760149355389,0.03188845,112280.0,112270.0,0.41325]
[1760149355585,0.39268845,112280.0,112270.0,0.41325]
[1760149355788,0.03188845,112280.0,112270.0,0.77405]
[1760149356180,0.03188845,112280.0,112270.0,0.01325]
[1760149356988,0.03944845,112280.0,112270.0,0.41325]
[1760149357887,0.00756,112280.0,112270.0,0.79714]
[1760149358792,0.00756,112280.0,112270.0,0.8861218]
[1760149359388,0.00756,112280.0,112270.0,1.0261218]
[1760149359594,0.03188845,112300.0,112290.0,0.03474]
[1760149360000,0.03188845,112300.0,112290.0,0.01346]
[1760149360196,0.03188845,112300.0,112290.0,0.03474]
[1760149360897,0.03188845,112300.0,112290.0,0.39554]
[1760149361893,0.77273288,112300.0,112290.0,0.01346]
[1760149362191,0.77273288,112300.0,112280.0,0.01346]
[1760149362192,0.80462133,112300.0,112280.0,0.01346]
[1760149362392,0.39268845,112290.0,112280.0,0.01346]
[1760149363501,0.39268845,112290.0,112280.0,0.03474]
[1760149363695,0.03188845,112290.0,112280.0,0.03474]
[1760149363901,0.03188845,112290.0,112280.0,0.01346]
[1760149364101,0.39268845,112290.0,112280.0,0.01346]
[1760149365091,0.80462133,112290.0,112280.0,0.01346]
[1760149365497,0.77273288,112290.0,112280.0,0.01346]
[1760149365893,1.17273288,112290.0,112270.0,0.01325]
[1760149366096,0.80462133,112290.0,112270.0,0.01325]
[1760149366296,0.80462133,112290.0,112280.0,0.01346]
[1760149367400,0.3608,112290.0,112280.0,0.01346]
[1760149369300,0.80462133,112300.0,112290.0,0.01365]
[1760149369500,0.39268845,112300.0,112290.0,0.01365]
[1760149370092,1.38358543,112300.0,112270.0,0.01325]
[1760149370293,0.3608,112280.0,112270.0,0.01325]
[1760149371404,0.77273288,112280.0,112270.0,0.01325]
[1760149372107,0.3608,112280.0,112270.0,0.01325]
[1760149373002,0.77273288,112280.0,112270.0,0.01325]
[1760149373402,1.19771278,112280.0,112250.0,0.01373333]
[1760149373601,0.77273288,112260.0,112250.0,0.01373333]
[1760149374402,0.77273288,112260.0,112250.0,8.333e-05]
[1760149374608,0.80462133,112260.0,112250.0,8.333e-05]
[1760149374805,0.80462133,112260.0,112250.0,0.01373333]
[1760149375012,0.98361103,112260.0,112250.0,8.333e-05]
[1760149375307,0.80462133,112260.0,112250.0,8.333e-05]
[1760149375809,0.80462133,112260.0,112250.0,0.01373333]
[1760149376206,0.39268845,112260.0,112250.0,0.01373333]
[1760149376409,0.80462133,112260.0,112250.0,0.01373333]
[1760149376804,0.39268845,112270.0,112250.0,0.77453333]
[1760149377002,0.39268845,112270.0,112260.0,0.01365]
[1760149377209,0.03188845,112270.0,112260.0,0.01365]
[1760149377611,0.03188845,112270.0,112260.0,0.79665]
[1760149377911,0.03188845,112280.0,112270.0,0.01365]
[1760149378411,0.39268845,112280.0,112270.0,0.01365]
[1760149379005,0.89359523,112280.0,112270.0,0.01365]
[1760149379314,1.30955196,112280.0,112260.0,0.01365]
[1760149379512,0.89360194,112270.0,112260.0,0.01365]
[1760149379711,0.80462014,112270.0,112260.0,0.01365]
[1760149380415,0.39268726,112270.0,112260.0,0.01365]
[1760149380613,0.80462014,112270.0,112260.0,0.01365]
[1760149381319,0.03188726,112270.0,112260.0,0.01365]
[1760149381610,0.85246532,112270.0,112260.0,0.01365]
[1760149381815,0.04784518,112270.0,112260.0,0.01365]
[1760149382112,0.40864518,112270.0,112260.0,0.01365]
[1760149382507,0.04784518,112270.0,112260.0,0.01365]
[1760149382914,0.07979205,112270.0,112260.0,0.03585]
[1760149383114,0.07979205,112270.0,112260.0,0.01365]
[1760149383307,0.04784518,112270.0,112260.0,0.43585]
[1760149383508,0.03194746,112270.0,112260.0,0.79665]
[1760149383916,0.03194746,112270.0,112260.0,0.8856398]
[1760149384116,0.03194746,112270.0,112260.0,0.79665]
[1760149384915,0.03194746,112270.0,112260.0,0.37445]
[1760149385108,0.03194746,112270.0,112260.0,0.79665]
[1760149385312,0.03194746,112280.0,112270.0,0.01365]
[1760149385512,0.04784518,112280.0,112270.0,0.39665]
[1760149386208,0.03194346,112280.0,112270.0,0.79665]
[1760149386611,0.03194346,112280.0,112270.0,0.8856318]
[1760149386912,0.03194346,112290.0,112280.0,0.03585]
[1760149387116,0.03194346,112300.0,112290.0,0.124816]
[1760149387417,0.04130346,112310.0,112300.0,0.03585]
[1760149387814,0.04130346,112310.0,112300.0,0.39665]
[1760149389012,0.04130346,112310.0,112300.0,0.77445]
[1760149389206,0.40310346,112310.0,112300.0,0.01365]
[1760149389611,0.40210346,112310.0,112300.0,0.01365]
[1760149389812,0.40410346,112310.0,112300.0,0.03598]
[1760149390212,0.04330346,112310.0,112300.0,0.39678]
[1760149390414,0.01136,112310.0,112300.0,0.8857381]
[1760149391119,0.01136,112310.0,112300.0,1.29767098]
[1760149391420,0.01136,112310.0,112300.0,0.8857381]
[1760149392716,0.03194346,112340.0,112330.0,0.01354]
[1760149392917,0.03194346,112340.0,112330.0,0.39667]
[1760149393419,0.03194346,112340.0,112330.0,0.03587]
[1760149393921,0.03194346,112340.0,112330.0,0.01354]
[1760149394113,0.39274346,112340.0,112330.0,0.01354]
[1760149394621,0.03194346,112340.0,112330.0,0.01354]
[1760149394821,0.03394346,112340.0,112330.0,0.03587]
[1760149395315,0.002,112340.0,112330.0,0.39667]
[1760149395516,0.03494346,112340.0,112330.0,0.39667]
[1760149395718,0.05084518,112340.0,112330.0,0.79667]
[1760149395918,0.0348202,112340.0,112330.0,0.79667]
[1760149397424,0.003,112340.0,112330.0,0.79667]
[1760149397816,0.003,112340.0,112330.0,0.9156043]
[1760149398015,0.003,112340.0,112330.0,1.32753718]
[1760149398217,0.0318202,112370.0,112350.0,0.03587]
[1760149398420,0.3926202,112380.0,112370.0,0.01354]
[1760149398619,0.0318202,112380.0,112370.0,0.39667]
[1760149398915,0.0318202,112390.0,112380.0,0.01354]
[1760149399112,0.07966538,112390.0,112380.0,0.01354]
[1760149399313,0.07966538,112390.0,112380.0,0.03587]
[1760149399314,0.3926202,112390.0,112380.0,0.03587]
[1760149399514,0.0318202,112390.0,112380.0,0.01354]
[1760149399717,0.0318202,112390.0,112380.0,0.03587]
[1760149400321,0.0338202,112390.0,112380.0,0.03587]
[1760149400623,0.002,112390.0,112380.0,0.03587]
[1760149400820,0.002,112390.0,112380.0,0.39667]
[1760149401214,0.005,112390.0,112380.0,0.39667]
[1760149401416,0.005,112390.0,112380.0,0.8855647]
[1760149402024,0.005,112390.0,112380.0,0.79667]
[1760149402326,0.005,112390.0,112380.0,1.20860288]
[1760149402514,0.0318202,112420.0,112410.0,0.03587]
[1760149402714,0.80455308,112430.0,112410.0,0.02430506]
[1760149402921,0.7926202,112430.0,112420.0,0.01354]
[1760149403118,1.1216,112430.0,112420.0,0.01354]
[1760149403326,1.1532398,112430.0,112420.0,0.01354]
[1760149403518,1.1532398,112430.0,112420.0,0.00854]
[1760149403718,1.1216,112430.0,112410.0,0.00197506]
[1760149403919,0.3608,112420.0,112410.0,0.00197506]
[1760149404118,0.77273288,112420.0,112400.0,0.01354]
[1760149404316,0.77273288,112420.0,112400.0,0.03587]
[1760149404624,0.77273288,112420.0,112410.0,0.01354]
[1760149404822,0.77573288,112420.0,112410.0,0.01354]
[1760149405014,1.24573288,112420.0,112410.0,0.01354]
[1760149405220,0.77873288,112420.0,112410.0,0.01354]
[1760149405514,0.0888715,112410.0,112390.0,0.01354]
[1760149405716,0.80433129,112400.0,112390.0,0.01354]
[1760149405925,0.80433129,112400.0,112380.0,0.01354]
[1760149406626,0.80433129,112400.0,112390.0,0.01354]
[1760149407427,0.39239841,112400.0,112390.0,0.01354]
[1760149407918,0.0888869,112390.0,112370.0,0.01354]
[1760149408124,0.3608,112380.0,112370.0,0.01354]
[1760149408521,0.88129851,112380.0,112360.0,0.01354]
[1760149408720,0.3608,112370.0,112360.0,0.01354]
[1760149408915,1.13179533,112370.0,112350.0,0.01354]
[1760149409118,0.48132431,112360.0,112340.0,0.01354]
[1760149409318,0.74289263,112350.0,112340.0,0.01354]
[1760149409615,0.39239841,112350.0,112340.0,0.01354]
[1760149409814,0.03159841,112360.0,112350.0,0.01354]
[1760149410017,0.39239841,112360.0,112340.0,0.01354]
[1760149410221,0.3608,112350.0,112340.0,0.01354]
[1760149410824,0.39239841,112360.0,112350.0,0.01354]
[1760149411425,0.03159841,112360.0,112350.0,0.8632659]
[1760149411626,0.39239841,112400.0,112390.0,0.01354]
[1760149411822,0.3608,112400.0,112390.0,0.01354]
[1760149412128,0.39239841,112400.0,112390.0,0.01354]
[1760149412921,0.39239841,112400.0,112380.0,0.01354]
[1760149412922,0.92913009,112400.0,112380.0,0.01354]
[1760149413121,0.48129281,112390.0,112380.0,0.01354]
[1760149413426,0.49753958,112390.0,112380.0,0.01354]
[1760149413628,0.40864518,112390.0,112380.0,0.01354]
[1760149413823,0.03168898,112390.0,112380.0,0.01354]
[1760149414023,0.39248898,112390.0,112380.0,0.01354]
[1760149414725,0.03168898,112390.0,112380.0,0.5024423]
[1760149414928,0.03268898,112390.0,112380.0,0.41354]
[1760149415530,0.001,112390.0,112380.0,0.41354]
[1760149415732,0.001,112390.0,112380.0,0.8632423]
[1760149416425,0.07953416,112440.0,112430.0,0.01354]
[1760149416625,0.00885379,112440.0,112430.0,0.01354]
[1760149416824,0.39248898,112450.0,112430.0,0.01354]
[1760149417026,0.39248898,112450.0,112440.0,0.01354]
[1760149417225,0.8108,112450.0,112430.0,0.01354]
[1760149417431,0.3608,112440.0,112430.0,0.01354]
[1760149417629,0.8108,112440.0,112420.0,0.01354]
[1760149417936,0.3608,112430.0,112410.0,0.37434]
[1760149418632,0.3608,112430.0,112420.0,0.01353]
[1760149418828,0.57250883,112440.0,112430.0,0.1023934]
[1760149418829,0.21170883,112440.0,112430.0,0.1023934]
[1760149419031,0.3618,112440.0,112430.0,0.01353]
[1760149419233,0.01004954,112440.0,112430.0,0.41353]
[1760149419538,0.01004954,112440.0,112430.0,0.8631934]
[1760149419929,0.01004954,112440.0,112430.0,0.78433]
[1760149420330,0.0793862,112440.0,112430.0,0.8731934]
[1760149420531,0.03168898,112480.0,112460.0,0.01353]
[1760149420730,1.37254655,112480.0,112460.0,0.37433]
[1760149420930,0.89952068,112480.0,112450.0,0.37433]
[1760149421330,0.89952068,112480.0,112460.0,0.01353]
[1760149421734,0.14872068,112480.0,112470.0,0.01353]
[1760149421933,0.14872068,112480.0,112460.0,0.37433]
[1760149421934,0.50952068,112480.0,112460.0,0.37433]
[1760149422139,0.50952068,112480.0,112460.0,0.01353]
[1760149422437,0.86052068,112480.0,112470.0,0.01353]
[1760149422741,0.01972068,112480.0,112470.0,0.01353]
[1760149422938,0.92172068,112480.0,112460.0,0.37433]
[1760149423141,0.46172068,112480.0,112460.0,0.37433]
[1760149423337,0.4544966,112480.0,112460.0,0.37433]
[1760149423536,0.8854966,112480.0,112460.0,0.37433]
[1760149423734,0.8864966,112480.0,112460.0,0.01353]
[1760149423932,0.3658,112470.0,112430.0,0.4631924]
[1760149424128,0.3608,112460.0,112440.0,0.01353]
[1760149424430,0.3608,112460.0,112430.0,0.37433]
[1760149424627,0.37433,112460.0,112440.0,0.3608]
[1760149424833,0.1023735,112460.0,112430.0,0.37433]
[1760149425139,0.84433,112460.0,112430.0,0.01353]
[1760149425330,0.3608,112450.0,112430.0,0.01353]
[1760149425734,0.3608,112450.0,112430.0,0.37433]
[1760149425936,0.3608,112460.0,112440.0,0.37433]
[1760149426140,0.39348898,112470.0,112450.0,0.37433]
[1760149426338,0.002,112460.0,112450.0,0.37433]
[1760149426736,0.001,112460.0,112450.0,0.01353]
[1760149427433,0.9038,112460.0,112440.0,0.01353]
[1760149427633,0.543,112460.0,112440.0,0.50433]
[1760149427830,0.4567203,112460.0,112440.0,0.4908]
[1760149428031,0.4567203,112460.0,112430.0,0.01353]
[1760149428032,0.3608,112450.0,112430.0,0.01353]
[1760149428231,0.3608,112450.0,112430.0,0.15353]
[1760149428833,0.71329422,112460.0,112430.0,0.6031932]
[1760149429037,0.40601898,112470.0,112440.0,0.37433]
[1760149429337,0.39248898,112470.0,112450.0,0.01353]
[1760149429544,0.88248898,112470.0,112450.0,0.01353]
[1760149429843,0.49437068,112470.0,112440.0,0.37433]
[1760149430034,0.3608,112450.0,112440.0,0.01353]
[1760149430238,0.3608,112450.0,112430.0,0.01353]
[1760149430439,0.3608,112450.0,112430.0,0.50433]
[1760149430841,0.3608,112460.0,112450.0,0.01284]
[1760149431041,0.7439832,112470.0,112450.0,0.01284]
[1760149432243,0.3618,112470.0,112450.0,0.01284]
[1760149432938,0.3618,112470.0,112460.0,0.01284]
[1760149433139,0.3608,112470.0,112460.0,0.01284]
[1760149433342,0.3608,112470.0,112450.0,0.01284]
[1760149433343,0.4496305,112470.0,112450.0,0.01284]
[1760149433541,0.3608,112460.0,112450.0,0.01284]
[1760149433739,0.3618,112470.0,112450.0,0.01284]
[1760149433939,0.3608,112460.0,112440.0,0.01284]
[1760149434135,0.3608,112460.0,112440.0,0.37364]
[1760149434442,0.80660092,112470.0,112440.0,0.37364]
[1760149434641,0.35149422,112470.0,112450.0,0.37364]
[1760149434944,0.80659822,112470.0,112440.0,0.37364]